fUSD/lending_fUSD_20240409
["ID","MTS","AMOUNT","RATE_DAILY","PERIOD"]
[321959331,1712651445389,-521.15434845,0.00020821,2]
[321959333,1712651445398,-500.0,0.00020821,2]
[321959335,1712651445407,-500.0,0.00020821,2]
[321959337,1712651445417,-500.0,0.00020821,2]
[321959339,1712651445427,-1808.87,0.00020821,2]
[321959341,1712651445438,-500.0,0.00020821,2]
[321959343,1712651445448,-943.72,0.00020821,2]
[321959345,1712651445458,-500.0,0.00020821,2]
[321959347,1712651445468,-500.0,0.00020821,2]
[321959349,1712651445477,-613.24,0.00020821,2]
[321959351,1712651445487,-717.69,0.00020821,2]
[321959353,1712651445496,-500.0,0.00020821,2]
[321959355,1712651445506,-616.38,0.00020821,2]
[321959357,1712651445515,-500.0,0.00020821,2]
[321959359,1712651445525,-991.99,0.00020821,2]
[321959361,1712651445534,-758.33,0.00020821,2]
[321959363,1712651445544,-500.0,0.00020821,2]
[321959365,1712651445554,-500.0,0.00020821,2]
[321959367,1712651445564,-1970.17,0.00020821,2]
[321959369,1712651445573,-500.0,0.00020821,2]
[321959371,1712651445583,-500.0,0.00020821,2]
[321959373,1712651445592,-500.0,0.00020821,2]
[321959375,1712651445602,-1765.22,0.00020821,2]
[321959377,1712651445611,-500.0,0.00020821,2]
[321959379,1712651445620,-500.0,0.00020821,2]
[321959381,1712651445630,-500.0,0.00020821,2]
[321959383,1712651445639,-500.0,0.00020821,2]
[321959385,1712651445648,-533.35813673,0.00020821,2]
[321959387,1712651445658,-239.70256555,0.00020821,2]
[321959389,1712651445667,-1455.51,0.00020821,2]
[321959391,1712651445677,-804.72,0.00020821,2]
[321959393,1712651445689,-500.0,0.00020821,2]
[321959395,1712651445698,-500.0,0.00020821,2]
[321959397,1712651445707,-500.0,0.00020821,2]
[321959399,1712651445716,-500.0,0.00020821,2]
[321959401,1712651445725,-500.0,0.00020821,2]
[321959403,1712651445734,-1417.53,0.00020821,2]
[321959405,1712651445743,-500.0,0.00020821,2]
[321959407,1712651445752,-855.22,0.00020821,2]
[321959409,1712651445762,-500.0,0.00020821,2]
[321959411,1712651445771,-315.56336267,0.00020821,2]
[321959413,1712651445780,-1444.29,0.00020821,2]
[321959415,1712651445789,-630.69,0.00020821,2]
[321959417,1712651445798,-500.0,0.00020821,2]
[321959419,1712651445807,-766.42,0.00020821,2]
[321959421,1712651445817,-500.0,0.00020821,2]
[321959422,1712651445827,-1775.95,0.00020821,2]
[321959424,1712651445836,-500.0,0.00020821,2]
[321959426,1712651445846,-799.95,0.00020821,2]
[321959428,1712651445855,-560.05195626,0.00020821,2]
[321959430,1712651445864,-1036.82,0.00020821,2]
[321959432,1712651445873,-500.0,0.00020821,2]
[321959434,1712651445883,-500.0,0.00020821,2]
[321959436,1712651445892,-500.0,0.00020821,2]
[321959438,1712651445901,-1462.02,0.00020821,2]
[321959441,1712651445910,-1410.47,0.00020821,2]
[321959442,1712651445919,-1641.11,0.00020821,2]
[321959445,1712651445929,-500.0,0.00020821,2]
[321959447,1712651445941,-500.0,0.00020821,2]
[321959449,1712651445950,-500.0,0.00020821,2]
[321959451,1712651445959,-500.0,0.00020821,2]
[321959452,1712651445968,-500.0,0.00020821,2]
[321959454,1712651445977,-500.0,0.00020821,2]
[321959456,1712651445986,-531.58,0.00020821,2]
[321959459,1712651445995,-1406.3,0.00020821,2]
[321959462,1712651446004,-500.0,0.00020821,2]
[321959464,1712651446014,-500.0,0.00020821,2]
[321959468,1712651446023,-1962.76,0.00020821,2]
[321959471,1712651446032,-500.0,0.00020821,2]
[321959473,1712651446041,-500.0,0.00020821,2]
[321959475,1712651446050,-500.0,0.00020821,2]
[321959477,1712651446059,-500.0,0.00020821,2]
[321959480,1712651446068,-155.60191444,0.00020821,2]
[321959483,1712651446076,-735.99,0.00020821,2]
[321959486,1712651446084,-990.88,0.00020821,2]
[321959489,1712651446093,-500.0,0.00020821,2]
[321959491,1712651446102,-517.67,0.00020821,2]
[321959493,1712651446111,-693.47,0.00020821,2]
[321959496,1712651446121,-212.15770893,0.00020821,2]
[321959499,1712651446130,-500.0,0.00020821,2]
[321959502,1712651446138,-1029.83,0.00020821,2]
[321959503,1712651446147,-513.88164002,0.00020821,2]
[321959505,1712651446156,-500.0,0.00020821,2]
[321959507,1712651446165,-1598.4,0.00020821,2]
[321959509,1712651446174,-500.0,0.00020821,2]
[321959511,1712651446186,-674.54,0.00020821,2]
[321959513,1712651446195,-500.0,0.00020821,2]
[321959515,1712651446204,-500.0,0.00020821,2]
[321959517,1712651446213,-500.0,0.00020821,2]
[321959519,1712651446224,-500.0,0.00020821,2]
[321959521,1712651446233,-2188.92,0.00020821,2]
[321959523,1712651446242,-500.0,0.00020821,2]
[321959525,1712651446252,-500.0,0.00020821,2]
[321959527,1712651446261,-1329.56,0.00020821,2]
[321959529,1712651446270,-151.21561939,0.00020821,2]
[321959531,1712651446279,-505.75752882,0.00020821,2]
[321959533,1712651446288,-500.0,0.00020821,2]
[321959535,1712651446298,-500.0,0.00020821,2]
[321959537,1712651446307,-500.0,0.00020821,2]
[321959540,1712651446316,-500.0,0.00020821,2]
[321959542,1712651446325,-615.43,0.00020821,2]
[321959543,1712651446335,-506.88641074,0.00020821,2]
[321959546,1712651446344,-500.0,0.00020821,2]
[321959547,1712651446354,-500.0,0.00020821,2]
[321959549,1712651446363,-500.0,0.00020821,2]
[321959551,1712651446372,-1567.68,0.00020821,2]
[321959553,1712651446381,-500.0,0.00020821,2]
[321959556,1712651446390,-2090.73,0.00020821,2]
[321959557,1712651446400,-500.0,0.00020821,2]
[321959559,1712651446409,-504.20701097,0.00020821,2]
[321959561,1712651446418,-500.0,0.00020821,2]
[321959563,1712651446427,-500.0,0.00020821,2]
[321959565,1712651446438,-504.42916973,0.00020821,2]
[321959567,1712651446447,-500.0,0.00020821,2]
[321959570,1712651446458,-500.0,0.00020821,2]
[321959572,1712651446468,-500.0,0.00020821,2]
[321959574,1712651446477,-837.08,0.00020821,2]
[321959575,1712651446485,-500.0,0.00020821,2]
[321959577,1712651446495,-500.0,0.00020821,2]
[321959580,1712651446505,-500.0,0.00020821,2]
[321959582,1712651446514,-500.0,0.00020821,2]
[321959584,1712651446523,-500.0,0.00020821,2]
[321959586,1712651446532,-1106.31,0.00020821,2]
[321959588,1712651446543,-784.6,0.00020821,2]
[321959589,1712651446553,-500.0,0.00020821,2]
[321959591,1712651446562,-500.0,0.00020821,2]
[321959594,1712651446572,-500.0,0.00020821,2]
[321959595,1712651446581,-500.0,0.00020821,2]
[321959597,1712651446590,-1005.15,0.00020821,2]
[321959599,1712651446600,-500.0,0.00020821,2]
[321959601,1712651446610,-500.0,0.00020821,2]
[321959604,1712651446619,-500.0,0.00020821,2]
[321959605,1712651446628,-500.0,0.00020821,2]
[321959607,1712651446639,-500.0,0.00020821,2]
[321959609,1712651446648,-500.0,0.00020821,2]
[321959612,1712651446657,-1115.39,0.00020821,2]
[321959614,1712651446666,-569.53973621,0.00020821,2]
[321959615,1712651446675,-500.0,0.00020821,2]
[321959618,1712651446685,-521.82,0.00020821,2]
[321959619,1712651446694,-500.0,0.00020821,2]
[321959621,1712651446703,-500.0,0.00020821,2]
[321959623,1712651446712,-500.0,0.00020821,2]
[321959625,1712651446721,-1487.44,0.00020821,2]
[321959627,1712651446730,-500.0,0.00020821,2]
[321959629,1712651446739,-500.0,0.00020821,2]
[321959631,1712651446748,-513.77,0.00020821,2]
[321959633,1712651446757,-1372.53,0.00020821,2]
[321959635,1712651446766,-639.12,0.00020821,2]
[321959638,1712651446776,-500.0,0.00020821,2]
[321959639,1712651446785,-500.0,0.00020821,2]
[321959641,1712651446794,-500.0,0.00020821,2]
[321959643,1712651446803,-500.0,0.00020821,2]
[321959645,1712651446811,-500.0,0.00020821,2]
[321959647,1712651446821,-500.0,0.00020821,2]
[321959649,1712651446829,-500.0,0.00020821,2]
[321959651,1712651446840,-1790.07,0.00020821,2]
[321959653,1712651446850,-500.0,0.00020821,2]
[321959654,1712651446858,-500.0,0.00020821,2]
[321959655,1712651446867,-736.57,0.00020821,2]
[321959656,1712651446876,-513.67,0.00020821,2]
[321959657,1712651446885,-500.0,0.00020821,2]
[321959658,1712651446894,-500.0,0.00020821,2]
[321959659,1712651446904,-500.0,0.00020821,2]
[321959660,1712651446913,-500.0,0.00020821,2]
[321959661,1712651446922,-934.0,0.00020821,2]
[321959662,1712651446931,-551.07,0.00020821,2]
[321959664,1712651446941,-500.0,0.00020821,2]
[321959666,1712651446950,-500.0,0.00020821,2]
[321959668,1712651446958,-500.0,0.00020821,2]
[321959670,1712651446967,-1120.19,0.00020821,2]
[321959672,1712651446976,-531.59876044,0.00020821,2]
[321959673,1712651446985,-672.5,0.00020821,2]
[321959675,1712651446994,-500.0,0.00020821,2]
[321959677,1712651447003,-500.0,0.00020821,2]
[321959679,1712651447012,-911.67,0.00020821,2]
[321959681,1712651447021,-806.53,0.00020821,2]
[321959683,1712651447030,-500.0,0.00020821,2]
[321959685,1712651447040,-500.0,0.00020821,2]
[321959688,1712651447049,-500.0,0.00020821,2]
[321959689,1712651447058,-500.0,0.00020821,2]
[321959692,1712651447067,-500.0,0.00020821,2]
[321959694,1712651447076,-500.0,0.00020821,2]
[321959695,1712651447086,-500.0,0.00020821,2]
[321959698,1712651447095,-500.0,0.00020821,2]
[321959700,1712651447104,-500.0,0.00020821,2]
[321959702,1712651447112,-500.0,0.00020821,2]
[321959703,1712651447122,-500.0,0.00020821,2]
[321959705,1712651447130,-952.05,0.00020821,2]
[321959707,1712651447139,-500.0,0.00020821,2]
[321959709,1712651447149,-1547.53,0.00020821,2]
[321959711,1712651447158,-1433.92,0.00020821,2]
[321959714,1712651447167,-500.0,0.00020821,2]
[321959716,1712651447177,-500.0,0.00020821,2]
[321959718,1712651447190,-500.0,0.00020821,2]
[321959719,1712651447201,-751.77,0.00020821,2]
[321959722,1712651447211,-500.0,0.00020821,2]
[321959724,1712651447223,-500.0,0.00020821,2]
[321959725,1712651447233,-500.0,0.00020821,2]
[321959727,1712651447243,-262.27159338,0.00020821,2]
[321959730,1712651447252,-500.0,0.00020821,2]
[321959732,1712651447262,-500.0,0.00020821,2]
[321959734,1712651447273,-500.0,0.00020821,2]
[321959736,1712651447282,-500.0,0.00020821,2]
[321959738,1712651447291,-1105.43,0.00020821,2]
[321959740,1712651447300,-839.58,0.00020821,2]
[321959742,1712651447309,-884.02,0.00020821,2]
[321959744,1712651447318,-1643.37,0.00020821,2]
[321959746,1712651447327,-877.23,0.00020821,2]
[321959748,1712651447336,-500.0,0.00020821,2]
[321959750,1712651447347,-500.0,0.00020821,2]
[321959751,1712651447356,-570.05,0.00020821,2]
[321959754,1712651447365,-500.0,0.00020821,2]
[321959755,1712651447374,-626.1,0.00020821,2]
[321959757,1712651447383,-500.0,0.00020821,2]
[321959760,1712651447393,-1192.79,0.00020821,2]
[321959761,1712651447402,-500.0,0.00020821,2]
[321959763,1712651447411,-500.0,0.00020821,2]
[321959765,1712651447420,-500.0,0.00020821,2]
[321959767,1712651447430,-959.5,0.00020821,2]
[321959769,1712651447441,-500.0,0.00020821,2]
[321959771,1712651447450,-500.0,0.00020821,2]
[321959774,1712651447459,-510.3,0.00020821,2]
[321959776,1712651447469,-1124.51,0.00020821,2]
[321959778,1712651447479,-551.84,0.00020821,2]
[321959779,1712651447488,-1839.81,0.00020821,2]
[321959782,1712651447498,-500.0,0.00020821,2]
[321959783,1712651447507,-500.0,0.00020821,2]
[321959785,1712651447517,-500.0,0.00020821,2]
[321959787,1712651447526,-913.4,0.00020821,2]
[321959789,1712651447535,-500.0,0.00020821,2]
[321959791,1712651447546,-500.0,0.00020821,2]
[321959793,1712651447555,-500.0,0.00020821,2]
[321959795,1712651447564,-1096.29,0.00020821,2]
[321959797,1712651447574,-835.61,0.00020821,2]
[321959799,1712651447583,-500.0,0.00020821,2]
[321959801,1712651447592,-631.44,0.00020821,2]
[321959803,1712651447602,-1181.91,0.00020821,2]
[321959805,1712651447610,-500.0,0.00020821,2]
[321959807,1712651447620,-500.0,0.00020821,2]
[321959809,1712651447629,-500.0,0.00020821,2]
[321959811,1712651447638,-1503.96,0.00020821,2]
[321959813,1712651447648,-500.0,0.00020821,2]
[321959815,1712651447656,-498.83159558,0.00020821,2]
[321959817,1712651447665,-1115.97,0.00020821,2]
[321959819,1712651447675,-740.0,0.00020821,2]
[321959822,1712651447685,-500.0,0.00020821,2]
[321959824,1712651447694,-602.24,0.00020821,2]
[321959826,1712651447703,-500.0,0.00020821,2]
[321959828,1712651447713,-500.0,0.00020821,2]
[321959829,1712651447724,-500.0,0.00020821,2]
[321959832,1712651447734,-1550.01,0.00020821,2]
[321959833,1712651447746,-500.0,0.00020821,2]
[321959836,1712651447755,-500.0,0.00020821,2]
[321959838,1712651447764,-500.0,0.00020821,2]
[321959840,1712651447773,-500.0,0.00020821,2]
[321959841,1712651447782,-670.03,0.00020821,2]
[321959843,1712651447791,-502.4729215,0.00020821,2]
[321959845,1712651447800,-500.0,0.00020821,2]
[321959847,1712651447809,-558.59,0.00020821,2]
[321959850,1712651447818,-545.94,0.00020821,2]
[321959852,1712651447827,-500.0,0.00020821,2]
[321959853,1712651447836,-666.81,0.00020821,2]
[321959855,1712651447845,-500.0,0.00020821,2]
[321959857,1712651447854,-1861.27,0.00020821,2]
[321959859,1712651447863,-803.56,0.00020821,2]
[321959861,1712651447872,-500.0,0.00020821,2]
[321959863,1712651447881,-1556.04,0.00020821,2]
[321959865,1712651447890,-500.0,0.00020821,2]
[321959867,1712651447899,-1180.78,0.00020821,2]
[321959869,1712651447908,-257.3042448,0.00020821,2]
[321959872,1712651447917,-500.0,0.00020821,2]
[321959874,1712651447927,-500.0,0.00020821,2]
[321959875,1712651447938,-500.0,0.00020821,2]
[321959877,1712651447947,-1168.4,0.00020821,2]
[321959879,1712651447956,-618.74,0.00020821,2]
[321959881,1712651447965,-687.7,0.00020821,2]
[321959884,1712651447974,-500.0,0.00020821,2]
[321959885,1712651447983,-500.0,0.00020821,2]
[321959887,1712651447992,-500.0,0.00020821,2]
[321959890,1712651448002,-1055.1,0.00020821,2]
[321959891,1712651448011,-500.0,0.00020821,2]
[321959893,1712651448021,-500.0,0.00020821,2]
[321959895,1712651448029,-500.0,0.00020821,2]
[321959897,1712651448039,-500.0,0.00020821,2]
[321959900,1712651448048,-500.0,0.00020821,2]
[321959901,1712651448058,-500.0,0.00020821,2]
[321959904,1712651448067,-720.86,0.00020821,2]
[321959905,1712651448077,-1206.28,0.00020821,2]
[321959908,1712651448086,-500.0,0.00020821,2]
[321959910,1712651448095,-500.0,0.00020821,2]
[321959911,1712651448104,-500.0,0.00020821,2]
[321959914,1712651448115,-769.91,0.00020821,2]
[321959916,1712651448125,-500.0,0.00020821,2]
[321959918,1712651448134,-694.96,0.00020821,2]
[321959920,1712651448143,-500.0,0.00020821,2]
[321959922,1712651448153,-532.20328945,0.00020821,2]
[321959924,1712651448163,-500.0,0.00020821,2]
[321959926,1712651448175,-500.0,0.00020821,2]
[321959928,1712651448186,-500.0,0.00020821,2]
[321959930,1712651448196,-500.0,0.00020821,2]
[321959932,1712651448205,-699.63,0.00020821,2]
[321959933,1712651448215,-1388.73,0.00020821,2]
[321959935,1712651448225,-500.0,0.00020821,2]
[321959937,1712651448234,-500.0,0.00020821,2]
[321959939,1712651448244,-500.0,0.00020821,2]
[321959941,1712651448255,-500.0,0.00020821,2]
[321959944,1712651448265,-500.0,0.00020821,2]
[321959945,1712651448274,-2232.19,0.00020821,2]
[321959947,1712651448283,-500.0,0.00020821,2]
[321959949,1712651448293,-500.0,0.00020821,2]
[321959952,1712651448302,-500.0,0.00020821,2]
[321959954,1712651448311,-1111.51,0.00020821,2]
[321959956,1712651448320,-500.0,0.00020821,2]
[321959958,1712651448330,-945.38,0.00020821,2]
[321959959,1712651448339,-857.06,0.00020821,2]
[321959962,1712651448348,-500.0,0.00020821,2]
[321959963,1712651448358,-500.0,0.00020821,2]
[321959965,1712651448367,-1359.33,0.00020821,2]
[321959967,1712651448376,-500.0,0.00020821,2]
[321959969,1712651448385,-500.0,0.00020821,2]
[321959971,1712651448394,-500.0,0.00020821,2]
[321959973,1712651448403,-1400.87,0.00020821,2]
[321959976,1712651448413,-1428.27,0.00020821,2]
[321959977,1712651448422,-500.0,0.00020821,2]
[321959979,1712651448432,-500.0,0.00020821,2]
[321959981,1712651448446,-500.0,0.00020821,2]
[321959983,1712651448456,-500.0,0.00020821,2]
[321959985,1712651448467,-500.0,0.00020821,2]
[321959987,1712651448476,-1464.53,0.00020821,2]
[321959989,1712651448485,-500.0,0.00020821,2]
[321959992,1712651448496,-849.51,0.00020821,2]
[321959994,1712651448514,-733.15,0.00020821,2]
[321959996,1712651448528,-500.0,0.00020821,2]
[321959997,1712651448537,-1860.17,0.00020821,2]
[321959999,1712651448547,-1824.27,0.00020821,2]
[321960001,1712651448556,-1509.23,0.00020821,2]
[321960003,1712651448565,-1418.94,0.00020821,2]
[321960005,1712651448573,-500.0,0.00020821,2]
[321960007,1712651448582,-500.0,0.00020821,2]
[321960009,1712651448591,-504.17641645,0.00020821,2]
[321960011,1712651448598,-500.0,0.00020821,2]
[321960013,1712651448606,-500.0,0.00020821,2]
[321960015,1712651448614,-1337.33,0.00020821,2]
[321960017,1712651448621,-500.0,0.00020821,2]
[321960019,1712651448630,-1061.23,0.00020821,2]
[321960021,1712651448640,-347.83090992,0.00020821,2]
[321960023,1712651448650,-500.0,0.00020821,2]
[321960025,1712651448662,-1041.57,0.00020821,2]
[321960027,1712651448671,-606.85,0.00020821,2]
[321960029,1712651448680,-743.14,0.00020821,2]
[321960032,1712651448693,-2502.75,0.00020821,2]
[321960033,1712651448703,-2325.56,0.00020821,2]
[321960036,1712651448712,-500.0,0.00020821,2]
[321960038,1712651448722,-655.03,0.00020821,2]
[321960040,1712651448731,-3454.94,0.00020821,2]
[321960042,1712651448740,-500.0,0.00020821,2]
[321960043,1712651448749,-500.0,0.00020821,2]
[321960045,1712651448759,-500.0,0.00020821,2]
[321960048,1712651448768,-500.0,0.00020821,2]
[321960050,1712651448777,-890.3,0.00020821,2]
[321960052,1712651448786,-500.0,0.00020821,2]
[321960054,1712651448795,-500.0,0.00020821,2]
[321960056,1712651448804,-1849.2,0.00020821,2]
[321960058,1712651448813,-322.05315239,0.00020821,2]
[321960060,1712651448823,-500.0,0.00020821,2]
[321960062,1712651448832,-2717.93,0.00020821,2]
[321960064,1712651448841,-500.0,0.00020821,2]
[321960066,1712651448850,-9552.43,0.00020821,2]
[321960068,1712651448859,-1339.99,0.00020821,2]
[321960070,1712651448868,-772.31,0.00020821,2]
[321960072,1712651448877,-3281.38,0.00020821,2]
[321960074,1712651448886,-532.98575024,0.00020821,2]
[321960076,1712651448895,-629.9,0.00020821,2]
[321960090,1712651449040,-229.1763505,0.00020821,2]
[321960091,1712651449050,-500.0,0.00020821,2]
[321960092,1712651449059,-500.0,0.00020821,2]
[321960093,1712651449069,-500.0,0.00020821,2]
[321960094,1712651449078,-6237.11,0.00020821,2]
[321960095,1712651449088,-500.0,0.00020821,2]
[321960096,1712651449098,-500.0,0.00020821,2]
[321960097,1712651449107,-500.0,0.00020821,2]
[321960099,1712651449116,-818.27,0.00020821,2]
[321960101,1712651449125,-656.42,0.00020821,2]
[321960103,1712651449135,-8518.8,0.00020821,2]
[321960105,1712651449144,-568.51,0.00020821,2]
[321960107,1712651449153,-715.37,0.00020821,2]
[321960109,1712651449164,-1157.47,0.00020821,2]
[321960111,1712651449174,-1255.93,0.00020821,2]
[321960113,1712651449185,-500.0,0.00020821,2]
[321960115,1712651449194,-606.82,0.00020821,2]
[321960117,1712651449204,-500.0,0.00020821,2]
[321960119,1712651449214,-1419.04,0.00020821,2]
[321960121,1712651449223,-1787.56,0.00020821,2]
[321960123,1712651449233,-2594.83,0.00020821,2]
[321960125,1712651449244,-1693.25,0.00020821,2]
[321960127,1712651449254,-4451.91,0.00020821,2]
[321960129,1712651449263,-500.0,0.00020821,2]
[321960131,1712651449272,-512.61149133,0.00020821,2]
[321960133,1712651449282,-500.0,0.00020821,2]
[321960135,1712651449291,-534.8,0.00020821,2]
[321960137,1712651449301,-2115.43,0.00020821,2]
[321960139,1712651449311,-500.0,0.00020821,2]
[321960141,1712651449320,-500.0,0.00020821,2]
[321960143,1712651449329,-500.0,0.00020821,2]
[321960145,1712651449339,-500.0,0.00020821,2]
[321960147,1712651449348,-736.12,0.00020821,2]
[321960149,1712651449357,-500.0,0.00020821,2]
[321960151,1712651449367,-524.41488589,0.00020821,2]
[321960154,1712651449376,-1674.27,0.00020821,2]
[321960156,1712651449386,-500.0,0.00020821,2]
[321960158,1712651449395,-500.0,0.00020821,2]
[321960160,1712651449404,-500.0,0.00020821,2]
[321960162,1712651449413,-2915.12,0.00020821,2]
[321960164,1712651449422,-9246.91,0.00020821,2]
[321960166,1712651449432,-500.0,0.00020821,2]
[321960168,1712651449444,-441.98661203,0.00020821,2]
[321960170,1712651449453,-500.0,0.00020821,2]
[321960172,1712651449462,-479.36906972,0.00020821,2]
[321960174,1712651449471,-608.07302576,0.00020821,2]
[321960176,1712651449480,-656.81,0.00020821,2]
[321960178,1712651449491,-2036.08,0.00020821,2]
[321960180,1712651449500,-500.0,0.00020821,2]
[321960182,1712651449509,-571.46,0.00020821,2]
[321960184,1712651449518,-500.0,0.00020821,2]
[321960186,1712651449527,-500.0,0.00020821,2]
[321960188,1712651449537,-500.0,0.00020821,2]
[321960190,1712651449547,-1769.27,0.00020821,2]
[321960192,1712651449557,-500.0,0.00020821,2]
[321960194,1712651449567,-3623.84,0.00020821,2]
[321960196,1712651449577,-2638.89,0.00020821,2]
[321960198,1712651449586,-500.0,0.00020821,2]
[321960200,1712651449595,-500.0,0.00020821,2]
[321960202,1712651449604,-534.27000191,0.00020821,2]
[321960204,1712651449613,-332.19341735,0.00020821,2]
[321960206,1712651449622,-1686.01,0.00020821,2]
[321960208,1712651449631,-500.0,0.00020821,2]
[321960210,1712651449641,-798.76,0.00020821,2]
[321960212,1712651449650,-1259.01,0.00020821,2]
[321960214,1712651449659,-6930.44,0.00020821,2]
[321960216,1712651449668,-500.0,0.00020821,2]
[321960218,1712651449678,-9396.56,0.00020821,2]
[321960220,1712651449689,-500.0,0.00020821,2]
[321960222,1712651449698,-1017.61,0.00020821,2]
[321960224,1712651449707,-500.0,0.00020821,2]
[321960226,1712651449716,-5092.15,0.00020821,2]
[321960228,1712651449726,-1286.85,0.00020821,2]
[321960230,1712651449735,-7207.83,0.00020821,2]
[321960232,1712651449744,-500.0,0.00020821,2]
[321960234,1712651449753,-1805.47,0.00020821,2]
[321960236,1712651449762,-500.0,0.00020821,2]
[321960238,1712651449771,-500.0,0.00020821,2]
[321960240,1712651449781,-1216.76,0.00020821,2]
[321960242,1712651449790,-500.0,0.00020821,2]
[321960244,1712651449799,-13379.58,0.00020821,2]
[321960246,1712651449808,-500.0,0.00020821,2]
[321960248,1712651449817,-500.0,0.00020821,2]
[321960250,1712651449826,-1554.71,0.00020821,2]
[321960252,1712651449836,-1098.25,0.00020821,2]
[321960254,1712651449845,-554.96765677,0.00020821,2]
[321960256,1712651449854,-1561.37,0.00020821,2]
[321960258,1712651449863,-37364.33,0.00020821,2]
[321960260,1712651449873,-1570.92,0.00020821,2]
[321960262,1712651449882,-260.35548373,0.00020821,2]
[321960264,1712651449891,-2859.67,0.00020821,2]
[321960266,1712651449901,-45619.68,0.00020821,2]
[321960269,1712651449910,-7566.48,0.00020821,2]
[321960271,1712651449920,-1162.95,0.00020821,2]
[321960273,1712651449929,-500.0,0.00020821,2]
[321960275,1712651449939,-500.0,0.00020821,2]
[321960277,1712651449949,-500.0,0.00020821,2]
[321960279,1712651449958,-2741.33,0.00020821,2]
[321960280,1712651449967,-500.0,0.00020821,2]
[321960282,1712651449977,-500.0,0.00020821,2]
[321960284,1712651449986,-500.0,0.00020821,2]
[321960286,1712651449995,-5623.42,0.00020821,2]
[321960288,1712651450004,-500.0,0.00020821,2]
[321960290,1712651450014,-1008.16,0.00020821,2]
[321960292,1712651450023,-1770.51,0.00020821,2]
[321960294,1712651450032,-2881.88,0.00020821,2]
[321960296,1712651450041,-18787.5,0.00020821,2]
[321960298,1712651450050,-500.0,0.00020821,2]
[321960300,1712651450060,-500.0,0.00020821,2]
[321960303,1712651450070,-500.0,0.00020821,2]
[321960305,1712651450080,-506.74331766,0.00020821,2]
[321960307,1712651450091,-500.0,0.00020821,2]
[321960309,1712651450101,-5119.14,0.00020821,2]
[321960311,1712651450110,-2405.43,0.00020821,2]
[321960313,1712651450120,-1005.09,0.00020821,2]
[321960315,1712651450129,-558.20877636,0.00020821,2]
[321960317,1712651450137,-10816.19,0.00020821,2]
[321960319,1712651450147,-1474.67,0.00020821,2]
[321960321,1712651450156,-500.0,0.00020821,2]
[321960323,1712651450166,-11481.1,0.00020821,2]
[321960325,1712651450179,-6352.12,0.00020821,2]
[321960327,1712651450189,-500.0,0.00020821,2]
[321960329,1712651450198,-500.0,0.00020821,2]
[321960331,1712651450207,-500.0,0.00020821,2]
[321960333,1712651450217,-2815.03,0.00020821,2]
[321960335,1712651450226,-2547.63,0.00020821,2]
[321960337,1712651450236,-816.82,0.00020821,2]